[Event "FIDE WYCC Open U14 2023"]
[Site "Montesilvano"]
[Date "2023.11.16"]
[Round "4.18"]
[White "Poljan, Max"]
[Black "Dotzer, Lukas"]
[Result "0-1"]
[ECO "B48"]
[WhiteElo "1953"]
[BlackElo "2339"]
[Annotator "RC"]
[PlyCount "100"]
[EventDate "2023.11.13"]
[EventType "swiss"]
[EventCountry "ITA"]
[SourceTitle "playchess.com"]
[Source "ChessBase"]
[SourceQuality "1"]
[TimeControl "40/5400+30:1800+30"]

1. e4 {[%emt 0:00:02]} c5 {[%emt 0:00:04]} 2. Nf3 {[%emt 0:00:04]} e6 {[%emt 0:00:07]} 3. d4 {[%emt 0:00:05]} cxd4 {[%emt 0:00:04]} 4. Nxd4 {[%emt 0:00:05]} Nc6 {[%emt 0:00:09]} 5. Nc3 {[%emt 0:00:08]} Qc7 {[%emt 0:00:04]} 6. Be3 {[%emt 0:00:08]} a6 {[%emt 0:00:04]} 7. Qf3 {[%emt 0:00:51]} b5 {[%emt 0:00:06]} 8. Nxc6 {[%emt 0:00:31]} Qxc6 {[%emt 0:00:06]} 9. Bd3 {[%emt 0:01:32]} b4 {[%emt 0:03:25]} 10. Ne2 {[%emt 0:02:04]} Nf6 {[%emt 0:06:05]} 11. Nd4 {[%emt 0:03:11]} Qc7 {[%emt 0:02:10]} 12. Qg3 {[%emt 0:03:11]} Qxg3 {[%emt 0:05:46]} 13. hxg3 {[%emt 0:00:03]} Ng4 {[%emt 0:02:45]} 14. Ke2 {[%emt 0:20:04]} Nxe3 {[%emt 0:06:02]} 15. Kxe3 {[%emt 0:00:28]} Bc5 {[%emt 0:03:58]} 16. e5 {[%emt 0:00:11]} d6 {[%emt 0:09:07]} 17. f4 {[%emt 0:07:13]} dxe5 {[%emt 0:08:08]} 18. fxe5 {[%emt 0:00:08]} Bb7 {[%emt 0:01:41]} 19. Be4 {[%emt 0:05:39]} Bxd4+ {[%emt 0:04:36]} 20. Kxd4 {[%emt 0:00:04]} Rd8+ {[%emt 0:02:25]} 21. Ke3 {[%emt 0:00:07]} Bxe4 {[%emt 0:00:13]} 22. Kxe4 {[%emt 0:00:15]} Rd2 {[%emt 0:00:46]} 23. Rac1 {[%emt 0:00:45]} O-O {[%emt 0:09:57]} 24. Kf3 {[%emt 0:07:18]} f6 {[%emt 0:03:12]} 25. Rhd1 {[%emt 0:08:36]} fxe5+ {[%emt 0:01:42]} 26. Kg4 {[%emt 0:00:43]} Rff2 {[%emt 0:05:33]} 27. Rxd2 {[%emt 0:02:39]} Rxd2 {[%emt 0:00:06]} 28. Kf3 {[%emt 0:00:03]} Kf7 {[%emt 0:04:05]} 29. a3 {[%emt 0:00:38]} a5 {[%emt 0:06:42]} 30. axb4 {[%emt 0:01:03]} axb4 {[%emt 0:00:05]} 31. b3 {[%emt 0:00:23]} Ke7 {[%emt 0:03:35]} 32. c3 {[%emt 0:03:06]} e4+ {[%emt 0:07:56]} 33. Kxe4 {[%emt 0:04:02]} Rxg2 {[%emt 0:00:26]} 34. Kf4 {[%emt 0:00:46]} bxc3 {[%emt 0:04:48]} 35. Rxc3 {[%emt 0:00:13]} Kf6 {[%emt 0:00:33]} 36. Rc8 {[%emt 0:01:28]} g5+ {[%emt 0:01:00]} 37. Kg4 {[%emt 0:01:17]} h5+ {[%emt 0:00:34]} 38. Kf3 {[%emt 0:00:33]} Rb2 {[%emt 0:00:27]} 39. Rb8 {[%emt 0:00:10]} g4+ {[%emt 0:00:48]} 40. Ke3 {[%emt 0:00:00]} Rg2 {[%emt 0:00:00]} 41. Kf4 {[%emt 0:04:30]} e5+ {[%emt 0:03:24]} 42. Ke4 {[%emt 0:00:01]} Rxg3 {[%emt 0:00:54]} 43. Rb6+ {[%emt 0:01:00]} Kg5 {[%emt 0:00:25]} 44. Kxe5 {[%emt 0:00:26]} Re3+ {[%emt 0:01:07]} 45. Kd4 {[%emt 0:00:06]} Re8 {[%emt 0:01:04]} 46. b4 {[%emt 0:01:00]} g3 {[%emt 0:01:06]} 47. Rb7 {[%emt 0:00:03]} h4 {[%emt 0:02:31]} 48. Rg7+ {[%emt 0:00:12]} Kf4 {[%emt 0:00:55]} 49. Rf7+ {[%emt 0:00:43]} Kg4 {[%emt 0:00:10]} 50. Rg7+ {[%emt 0:00:04]} Kh3 {[%emt 0:00:16]} 0-1

[Event "FIDE WYCC Open U14 2023"]
[Site "Montesilvano"]
[Date "2023.11.16"]
[Round "4.19"]
[White "Cieslak, Patryk"]
[Black "George Samir, David"]
[Result "1-0"]
[ECO "B62"]
[WhiteElo "2284"]
[BlackElo "1942"]
[Annotator "RC"]
[PlyCount "79"]
[EventDate "2023.11.13"]
[EventType "swiss"]
[EventCountry "ITA"]
[SourceTitle "playchess.com"]
[Source "ChessBase"]
[SourceQuality "1"]
[TimeControl "40/5400+30:1800+30"]

1. e4 {[%emt 0:00:05]} c5 {[%emt 0:00:02]} 2. Nf3 {[%emt 0:00:01]} d6 {[%emt 0:00:10]} 3. d4 {[%emt 0:00:01]} cxd4 {[%emt 0:00:06]} 4. Nxd4 {[%emt 0:00:02]} Nf6 {[%emt 0:00:08]} 5. Nc3 {[%emt 0:00:01]} Nc6 {[%emt 0:00:07]} 6. Bg5 {[%emt 0:00:02]} e6 {[%emt 0:00:07]} 7. Qd3 {[%emt 0:00:02]} Bd7 {[%emt 0:00:06]} 8. Ndb5 {[%emt 0:00:04]} Qb8 {[%emt 0:00:07]} 9. O-O-O {[%emt 0:04:53]} Ng4 {[%emt 0:04:24]} 10. Bh4 {[%emt 0:13:35]} a6 {[%emt 0:07:07]} 11. Nxd6+ {[%emt 0:01:48]} Bxd6 {[%emt 0:00:33]} 12. Qxd6 {[%emt 0:00:19]} Qxd6 {[%emt 0:00:03]} 13. Rxd6 {[%emt 0:00:02]} g5 {[%emt 0:00:08]} 14. h3 {[%emt 0:01:31]} gxh4 {[%emt 0:03:15]} 15. hxg4 {[%emt 0:00:22]} Ke7 {[%emt 0:01:58]} 16. Rd1 {[%emt 0:02:04]} h5 {[%emt 0:01:36]} 17. Rxh4 {[%emt 0:00:34]} hxg4 {[%emt 0:00:15]} 18. Rxg4 {[%emt 0:00:23]} b5 {[%emt 0:00:16]} 19. Rg3 {[%emt 0:00:24]} Rh4 {[%emt 0:00:47]} 20. Re3 {[%emt 0:02:15]} Ne5 {[%emt 0:02:37]} 21. f3 {[%emt 0:04:05]} Rg8 {[%emt 0:04:01]} 22. Nb1 {[%emt 0:02:17]} b4 {[%emt 0:01:40]} 23. Nd2 {[%emt 0:05:54]} Rg3 {[%emt 0:01:13]} 24. Bxa6 {[%emt 0:13:04]} Rxg2 {[%emt 0:00:08]} 25. Re2 {[%emt 0:00:34]} Rg8 {[%emt 0:03:51]} 26. Rf2 {[%emt 0:06:21]} Ra8 {[%emt 0:00:30]} 27. Nc4 {[%emt 0:00:45]} Nxf3 {[%emt 0:11:36]} 28. Bb7 {[%emt 0:11:28]} Rxa2 {[%emt 0:07:47]} 29. Kb1 {[%emt 0:00:22]} Ra7 {[%emt 0:00:05]} 30. Rxf3 {[%emt 0:00:14]} Rxb7 {[%emt 0:02:01]} 31. Nd6 {[%emt 0:00:33]} Ra7 {[%emt 0:01:28]} 32. Rxf7+ {[%emt 0:00:09]} Kd8 {[%emt 0:00:06]} 33. Nc4 {[%emt 0:03:23]} Ke8 {[%emt 0:01:43]} 34. Nd6+ {[%emt 0:00:01]} Kd8 {[%emt 0:00:06]} 35. Nc4 {[%emt 0:00:17]} Ke8 {[%emt 0:00:12]} 36. Rdf1 {[%emt 0:00:29]} Rh8 {[%emt 0:01:17]} 37. Rg7 {[%emt 0:00:52]} Kd8 {[%emt 0:02:55]} 38. Ne5 {[%emt 0:00:17]} Kc8 {[%emt 0:01:41]} 39. Rd1 {[%emt 0:01:09]} Rd8 {[%emt 0:02:11]} 40. Nc6 {[%emt 0:00:00]} 1-0

[Event "FIDE WYCC Open U14 2023"]
[Site "Montesilvano"]
[Date "2023.11.16"]
[Round "4.20"]
[White "Terlouw, Wouter"]
[Black "Dinh Nho Kiet"]
[Result "0-1"]
[ECO "A40"]
[WhiteElo "1932"]
[BlackElo "2253"]
[Annotator "RC"]
[PlyCount "62"]
[EventDate "2023.11.13"]
[EventType "swiss"]
[EventCountry "ITA"]
[SourceTitle "playchess.com"]
[Source "ChessBase"]
[SourceQuality "1"]
[TimeControl "40/5400+30:1800+30"]

1. d4 {[%emt 0:00:04]} Nf6 {[%emt 0:00:29]} 2. c4 {[%emt 0:00:06]} e6 {[%emt 0:00:05]} 3. g3 {[%emt 0:00:05]} c5 {[%emt 0:00:50]} 4. d5 {[%emt 0:00:44]} b5 {[%emt 0:01:03]} 5. dxe6 {[%emt 0:03:25]} fxe6 {[%emt 0:00:12]} 6. Bg2 {[%emt 0:01:02]} d5 {[%emt 0:00:07]} 7. cxd5 {[%emt 0:01:11]} exd5 {[%emt 0:00:05]} 8. Nc3 {[%emt 0:03:15]} Bb7 {[%emt 0:00:06]} 9. Nxb5 {[%emt 0:02:21]} Qd7 {[%emt 0:00:06]} 10. Na3 {[%emt 0:00:26]} Nc6 {[%emt 0:00:22]} 11. Nf3 {[%emt 0:00:48]} Bd6 {[%emt 0:02:36]} 12. O-O {[%emt 0:03:47]} O-O {[%emt 0:00:07]} 13. Bg5 {[%emt 0:01:11]} Nb4 {[%emt 0:01:06]} 14. Nc2 {[%emt 0:03:51]} Nxc2 {[%emt 0:00:58]} 15. Qxc2 {[%emt 0:00:32]} Ne4 {[%emt 0:00:03]} 16. Rfd1 {[%emt 0:01:16]} Qf5 {[%emt 0:04:42]} 17. Be3 {[%emt 0:00:55]} Nxg3 {[%emt 0:03:38]} 18. Qxf5 {[%emt 0:11:41]} Nxf5 {[%emt 0:00:06]} 19. Bc1 {[%emt 0:00:38]} Rab8 {[%emt 0:21:02]} 20. b3 {[%emt 0:07:37]} d4 {[%emt 0:04:11]} 21. Ba3 {[%emt 0:17:09]} Ba6 {[%emt 0:16:17]} 22. e4 {[%emt 0:14:29]} dxe3 {[%emt 0:02:09]} 23. fxe3 {[%emt 0:00:19]} Bb7 {[%emt 0:11:14]} 24. Ne1 {[%emt 0:06:47]} Rf6 {[%emt 0:06:55]} 25. Bxb7 {[%emt 0:03:39]} Rxb7 {[%emt 0:00:07]} 26. Ng2 {[%emt 0:00:27]} Rg6 {[%emt 0:02:15]} 27. e4 {[%emt 0:01:32]} Nd4 {[%emt 0:04:15]} 28. Kh1 {[%emt 0:06:58]} Nc2 {[%emt 0:03:10]} 29. e5 {[%emt 0:00:32]} Be7 {[%emt 0:00:04]} 30. Bxc5 {[%emt 0:00:35]} Nxa1 {[%emt 0:00:12]} 31. Rc1 {[%emt 0:01:48]} Rc6 {[%emt 0:00:28]} 0-1

[Event "FIDE WYCC Open U14 2023"]
[Site "Montesilvano"]
[Date "2023.11.16"]
[Round "4.21"]
[White "Akhmedov, David"]
[Black "Dumanuly, Sultanbeibarys"]
[Result "0-1"]
[ECO "B30"]
[WhiteElo "2240"]
[BlackElo "1931"]
[Annotator "RC"]
[PlyCount "48"]
[EventDate "2023.11.13"]
[EventType "swiss"]
[EventCountry "ITA"]
[SourceTitle "playchess.com"]
[Source "ChessBase"]
[SourceQuality "1"]
[TimeControl "40/5400+30:1800+30"]

1. e4 {[%emt 0:02:40]} c5 {[%emt 0:00:07]} 2. Nf3 {[%emt 0:00:05]} Nc6 {[%emt 0:00:04]} 3. Nc3 {[%emt 0:04:40]} d6 {[%emt 0:00:32]} 4. g3 {[%emt 0:02:52]} g6 {[%emt 0:01:01]} 5. Bg2 {[%emt 0:00:04]} Bg7 {[%emt 0:00:09]} 6. O-O {[%emt 0:00:08]} e5 {[%emt 0:03:33]} 7. d3 {[%emt 0:00:25]} Nge7 {[%emt 0:00:30]} 8. Nd2 {[%emt 0:08:24]} O-O {[%emt 0:03:03]} 9. f4 {[%emt 0:03:53]} Be6 {[%emt 0:06:50]} 10. Nc4 {[%emt 0:05:48]} Nd4 {[%emt 0:10:35]} 11. Ne3 {[%emt 0:10:47]} Qd7 {[%emt 0:08:06]} 12. Ne2 {[%emt 0:11:01]} Rae8 {[%emt 0:08:28]} 13. c4 {[%emt 0:07:32]} f5 {[%emt 0:09:10]} 14. exf5 {[%emt 0:12:34]} Nexf5 {[%emt 0:01:55]} 15. Nc3 {[%emt 0:02:14]} Nxe3 {[%emt 0:02:35]} 16. Bxe3 {[%emt 0:00:03]} Bg4 {[%emt 0:01:41]} 17. Qd2 {[%emt 0:11:11]} exf4 {[%emt 0:00:52]} 18. Bxf4 {[%emt 0:00:11]} Ne2+ {[%emt 0:02:18]} 19. Nxe2 {[%emt 0:00:32]} Rxe2 {[%emt 0:00:08]} 20. Bd5+ {[%emt 0:00:38]} Kh8 {[%emt 0:00:09]} 21. Qa5 {[%emt 0:00:32]} b6 {[%emt 0:05:07]} 22. Qb5 {[%emt 0:00:06]} Qf5 {[%emt 0:00:31]} 23. Qc6 {[%emt 0:01:58]} Bd4+ {[%emt 0:00:31]} 24. Kh1 {[%emt 0:00:02]} Rxh2+ {[%emt 0:00:06]} 0-1

[Event "FIDE WYCC Open U14 2023"]
[Site "Montesilvano"]
[Date "2023.11.16"]
[Round "4.22"]
[White "Ral Lustig, Melvin"]
[Black "Gkavardinas, Antonios"]
[Result "0-1"]
[ECO "D31"]
[WhiteElo "1911"]
[BlackElo "2230"]
[Annotator "RC"]
[PlyCount "80"]
[EventDate "2023.11.13"]
[EventType "swiss"]
[EventCountry "ITA"]
[SourceTitle "playchess.com"]
[Source "ChessBase"]
[SourceQuality "1"]
[TimeControl "40/5400+30:1800+30"]

1. d4 {[%emt 0:00:11]} d5 {[%emt 0:00:07]} 2. c4 {[%emt 0:00:12]} e6 {[%emt 0:00:07]} 3. Nc3 {[%emt 0:00:06]} Be7 {[%emt 0:00:08]} 4. cxd5 {[%emt 0:00:43]} exd5 {[%emt 0:00:02]} 5. Bf4 {[%emt 0:00:07]} c6 {[%emt 0:00:32]} 6. e3 {[%emt 0:00:05]} Bf5 {[%emt 0:00:18]} 7. Nge2 {[%emt 0:00:08]} Nd7 {[%emt 0:01:12]} 8. Ng3 {[%emt 0:00:07]} Bg6 {[%emt 0:01:05]} 9. Be2 {[%emt 0:00:08]} Ngf6 {[%emt 0:02:03]} 10. h4 {[%emt 0:00:21]} h6 {[%emt 0:01:26]} 11. Bd3 {[%emt 0:01:17]} Nf8 {[%emt 0:04:03]} 12. Nf5 {[%emt 0:00:59]} Ne6 {[%emt 0:03:49]} 13. Be5 {[%emt 0:03:32]} Bxf5 {[%emt 0:08:50]} 14. Bxf5 {[%emt 0:00:19]} Bd6 {[%emt 0:01:30]} 15. Qc2 {[%emt 0:11:27]} Qe7 {[%emt 0:02:11]} 16. O-O-O {[%emt 0:02:57]} Bxe5 {[%emt 0:10:44]} 17. dxe5 {[%emt 0:00:08]} Nd7 {[%emt 0:00:07]} 18. f4 {[%emt 0:04:50]} Nb6 {[%emt 0:02:04]} 19. Kb1 {[%emt 0:07:11]} O-O-O {[%emt 0:04:28]} 20. Bxe6+ {[%emt 0:19:10]} fxe6 {[%emt 0:04:14]} 21. h5 {[%emt 0:03:20]} Nc4 {[%emt 0:03:17]} 22. Rh3 {[%emt 0:06:55]} Kb8 {[%emt 0:01:51]} 23. Ka1 {[%emt 0:11:26]} Rd7 {[%emt 0:07:00]} 24. Nb1 {[%emt 0:02:07]} Rc8 {[%emt 0:05:05]} 25. Nd2 {[%emt 0:00:54]} Nb6 {[%emt 0:00:41]} 26. Nf3 {[%emt 0:00:51]} c5 {[%emt 0:02:52]} 27. Qf2 {[%emt 0:02:16]} Nc4 {[%emt 0:08:29]} 28. Nd2 {[%emt 0:04:16]} Na5 {[%emt 0:02:34]} 29. Qh4 {[%emt 0:01:32]} Qe8 {[%emt 0:01:13]} 30. Rc1 {[%emt 0:01:12]} Rdc7 {[%emt 0:01:44]} 31. Qg4 {[%emt 0:00:29]} c4 {[%emt 0:02:19]} 32. Nb1 {[%emt 0:00:47]} b5 {[%emt 0:02:09]} 33. Qd1 {[%emt 0:04:57]} b4 {[%emt 0:02:38]} 34. Rg3 {[%emt 0:02:22]} Qb5 {[%emt 0:02:21]} 35. Rf3 {[%emt 0:04:43]} Nb3+ {[%emt 0:08:15]} 36. axb3 {[%emt 0:00:08]} Qa5+ {[%emt 0:00:16]} 37. Na3 {[%emt 0:00:13]} c3 {[%emt 0:01:22]} 38. bxc3 {[%emt 0:01:43]} Qxa3+ {[%emt 0:00:21]} 39. Kb1 {[%emt 0:00:04]} bxc3 {[%emt 0:00:35]} 40. e4 {[%emt 0:00:00]} Qb2# 0-1

[Event "FIDE WYCC Open U14 2023"]
[Site "Montesilvano"]
[Date "2023.11.16"]
[Round "4.23"]
[White "Sharshenbekov, Emir"]
[Black "Katsanis, Vasileios Dim"]
[Result "0-1"]
[ECO "B12"]
[WhiteElo "1893"]
[BlackElo "2173"]
[Annotator "RC"]
[PlyCount "66"]
[EventDate "2023.11.13"]
[EventType "swiss"]
[EventCountry "ITA"]
[SourceTitle "playchess.com"]
[Source "ChessBase"]
[SourceQuality "1"]
[TimeControl "40/5400+30:1800+30"]

1. e4 {[%emt 0:00:17]} c6 {[%emt 0:00:04]} 2. d4 {[%emt 0:00:33]} d5 {[%emt 0:00:04]} 3. f3 {[%emt 0:00:37]} dxe4 {[%emt 0:00:33]} 4. fxe4 {[%emt 0:00:17]} e5 {[%emt 0:00:06]} 5. Nf3 {[%emt 0:00:32]} Bg4 {[%emt 0:00:04]} 6. Bc4 {[%emt 0:00:42]} Nd7 {[%emt 0:00:09]} 7. O-O {[%emt 0:02:55]} Ngf6 {[%emt 0:01:03]} 8. c3 {[%emt 0:01:54]} Bd6 {[%emt 0:05:16]} 9. Be3 {[%emt 0:06:34]} O-O {[%emt 0:01:20]} 10. Nbd2 {[%emt 0:00:26]} Qe7 {[%emt 0:08:25]} 11. Qc2 {[%emt 0:06:00]} exd4 {[%emt 0:10:24]} 12. cxd4 {[%emt 0:01:01]} c5 {[%emt 0:05:40]} 13. d5 {[%emt 0:07:11]} Rae8 {[%emt 0:07:31]} 14. Rae1 {[%emt 0:07:17]} Ne5 {[%emt 0:10:28]} 15. Bb5 {[%emt 0:11:28]} Rc8 {[%emt 0:09:49]} 16. Bg5 {[%emt 0:17:33]} c4 {[%emt 0:06:58]} 17. Nxe5 {[%emt 0:07:12]} Bxe5 {[%emt 0:00:49]} 18. Nxc4 {[%emt 0:03:55]} a6 {[%emt 0:04:33]} 19. Qd2 {[%emt 0:21:07]} axb5 {[%emt 0:01:00]} 20. Nxe5 {[%emt 0:00:20]} Qxe5 {[%emt 0:00:01]} 21. Bxf6 {[%emt 0:00:36]} gxf6 {[%emt 0:00:12]} 22. Rf4 {[%emt 0:00:08]} Bd7 {[%emt 0:01:18]} 23. Ref1 {[%emt 0:00:26]} f5 {[%emt 0:03:00]} 24. exf5 {[%emt 0:01:01]} f6 {[%emt 0:00:41]} 25. Re1 {[%emt 0:01:36]} Qd6 {[%emt 0:00:57]} 26. Rh4 {[%emt 0:01:15]} Bxf5 {[%emt 0:01:28]} 27. Qf4 {[%emt 0:00:32]} Qxf4 {[%emt 0:00:17]} 28. Rxf4 {[%emt 0:00:01]} Bg6 {[%emt 0:00:25]} 29. Re6 {[%emt 0:00:44]} Kg7 {[%emt 0:06:53]} 30. Rb6 {[%emt 0:00:36]} Rc1+ {[%emt 0:00:50]} 31. Kf2 {[%emt 0:00:30]} Rc2+ {[%emt 0:00:13]} 32. Kf3 {[%emt 0:00:28]} Rxb2 {[%emt 0:00:27]} 33. Rxb7+ {[%emt 0:00:02]} Rf7 0-1

[Event "FIDE WYCC Open U14 2023"]
[Site "Montesilvano"]
[Date "2023.11.16"]
[Round "4.24"]
[White "Yun, Hungi"]
[Black "Sodbilegt, Naranbold"]
[Result "1-0"]
[ECO "B90"]
[WhiteElo "1884"]
[BlackElo "2151"]
[Annotator "RC"]
[PlyCount "103"]
[EventDate "2023.11.13"]
[EventType "swiss"]
[EventCountry "ITA"]
[SourceTitle "playchess.com"]
[Source "ChessBase"]
[SourceQuality "1"]
[TimeControl "40/5400+30:1800+30"]

1. e4 {[%emt 0:00:16]} c5 {[%emt 0:00:03]} 2. Nf3 {[%emt 0:00:09]} d6 {[%emt 0:00:03]} 3. d4 {[%emt 0:00:08]} cxd4 {[%emt 0:00:05]} 4. Nxd4 {[%emt 0:00:05]} Nf6 {[%emt 0:00:03]} 5. Nc3 {[%emt 0:00:07]} a6 {[%emt 0:00:04]} 6. Be3 {[%emt 0:00:21]} Ng4 {[%emt 0:01:20]} 7. Bc1 {[%emt 0:07:49]} Nf6 {[%emt 0:01:30]} 8. Be3 {[%emt 0:00:06]} e5 {[%emt 0:00:03]} 9. Nf3 {[%emt 0:00:04]} Be7 {[%emt 0:04:14]} 10. Bc4 {[%emt 0:00:06]} Be6 {[%emt 0:01:54]} 11. Bb3 {[%emt 0:00:40]} O-O {[%emt 0:01:21]} 12. O-O {[%emt 0:00:08]} b5 {[%emt 0:05:40]} 13. Qd3 {[%emt 0:06:55]} Qc7 {[%emt 0:13:02]} 14. Rfd1 {[%emt 0:04:41]} Bc4 {[%emt 0:08:26]} 15. Bxc4 {[%emt 0:05:15]} bxc4 {[%emt 0:00:14]} 16. Qe2 {[%emt 0:04:58]} Nbd7 {[%emt 0:01:19]} 17. Nh4 {[%emt 0:07:30]} g6 {[%emt 0:11:27]} 18. Qf3 {[%emt 0:06:35]} Rfb8 {[%emt 0:18:25]} 19. Rab1 {[%emt 0:05:42]} Bf8 {[%emt 0:03:42]} 20. g4 {[%emt 0:13:06]} Rb7 {[%emt 0:08:54]} 21. Ng2 {[%emt 0:10:59]} Rab8 {[%emt 0:02:02]} 22. Bc1 {[%emt 0:00:08]} Bg7 {[%emt 0:02:50]} 23. Ne3 {[%emt 0:00:41]} Nf8 {[%emt 0:05:02]} 24. g5 {[%emt 0:04:35]} Ne8 {[%emt 0:02:56]} 25. Ncd5 {[%emt 0:02:52]} Qc8 {[%emt 0:01:55]} 26. Ng4 {[%emt 0:03:48]} Ne6 {[%emt 0:01:28]} 27. c3 {[%emt 0:00:25]} Qd8 {[%emt 0:02:03]} 28. h4 {[%emt 0:00:55]} Rd7 {[%emt 0:01:50]} 29. Be3 {[%emt 0:00:50]} Rdb7 {[%emt 0:00:04]} 30. Rd2 {[%emt 0:01:41]} a5 {[%emt 0:01:23]} 31. Kg2 {[%emt 0:02:26]} a4 {[%emt 0:00:05]} 32. a3 {[%emt 0:00:09]} Kh8 {[%emt 0:01:09]} 33. Qh3 {[%emt 0:06:27]} Kg8 {[%emt 0:01:06]} 34. Rh1 {[%emt 0:03:53]} Rb5 {[%emt 0:00:54]} 35. Qh2 {[%emt 0:01:34]} f5 {[%emt 0:00:32]} 36. gxf6 {[%emt 0:00:50]} Nxf6 {[%emt 0:00:31]} 37. Ndxf6+ {[%emt 0:00:49]} Bxf6 {[%emt 0:00:05]} 38. h5 {[%emt 0:00:44]} g5 {[%emt 0:00:18]} 39. Rhd1 {[%emt 0:00:09]} Bg7 {[%emt 0:01:22]} 40. Rxd6 {[%emt 0:00:00]} Qc8 {[%emt 0:00:00]} 41. Qh3 {[%emt 0:03:15]} R5b6 {[%emt 0:19:48]} 42. h6 {[%emt 0:05:22]} Bh8 {[%emt 0:07:54]} 43. Qf3 {[%emt 0:04:06]} Rxd6 {[%emt 0:00:18]} 44. Rxd6 {[%emt 0:00:07]} Nf4+ {[%emt 0:02:01]} 45. Bxf4 {[%emt 0:00:19]} gxf4 {[%emt 0:00:43]} 46. Qd1 {[%emt 0:00:43]} Kf8 {[%emt 0:00:36]} 47. Kf3 {[%emt 0:07:15]} Ke7 {[%emt 0:00:18]} 48. Qd5 {[%emt 0:00:50]} Rb7 {[%emt 0:02:52]} 49. Rc6 {[%emt 0:01:10]} Qd7 {[%emt 0:00:17]} 50. Qc5+ {[%emt 0:00:04]} Kf7 {[%emt 0:00:15]} 51. Rd6 {[%emt 0:01:17]} Qb5 {[%emt 0:00:46]} 52. Qc8 {[%emt 0:01:29]} 1-0

[Event "FIDE WYCC Open U14 2023"]
[Site "Montesilvano"]
[Date "2023.11.16"]
[Round "4.25"]
[White "Zaragoza Alanis, Miguel Arnulfo"]
[Black "Bazilius, Augustinas"]
[Result "1/2-1/2"]
[ECO "C02"]
[WhiteElo "1838"]
[BlackElo "2138"]
[Annotator "NA RC"]
[PlyCount "63"]
[EventDate "2023.11.13"]
[EventType "swiss"]
[EventCountry "ITA"]
[SourceTitle "playchess.com"]
[Source "ChessBase"]
[SourceQuality "1"]
[TimeControl "40/5400+30:1800+30"]

1. e4 {[%emt 0:00:02]} e6 {[%emt 0:00:06]} 2. d4 {[%emt 0:00:05]} d5 {[%emt 0:00:04]} 3. e5 {[%emt 0:00:05]} c5 {[%emt 0:00:04]} 4. c3 {[%emt 0:00:05]} Bd7 {[%emt 0:00:15]} 5. Nf3 {[%emt 0:00:29]} a6 {[%emt 0:00:23]} 6. Be2 {[%emt 0:01:50]} cxd4 {[%emt 0:00:25]} 7. cxd4 {[%emt 0:05:47]} Bb5 {[%emt 0:00:12]} 8. Bxb5+ {[%emt 0:03:33]} axb5 {[%emt 0:00:03]} 9. O-O {[%emt 0:04:00]} b4 {[%emt 0:01:37]} 10. Qd3 {[%emt 0:01:05]} Qb6 {[%emt 0:00:42]} 11. Be3 {[%emt 0:00:47]} Nc6 {[%emt 0:01:34]} 12. Nbd2 {[%emt 0:03:07]} Nge7 {[%emt 0:00:37]} 13. Nb3 {[%emt 0:00:32]} h5 {[%emt 0:07:00]} 14. h3 {[%emt 0:03:17]} Nf5 {[%emt 0:00:27]} 15. g4 {[%emt 0:09:01]} hxg4 {[%emt 0:02:27]} 16. hxg4 {[%emt 0:00:02]} Nh4 {[%emt 0:00:08]} 17. Nxh4 {[%emt 0:00:35]} Rxh4 {[%emt 0:00:07]} 18. f3 {[%emt 0:00:58]} Be7 {[%emt 0:00:52]} 19. Kg2 {[%emt 0:01:22]} Kd7 {[%emt 0:10:46]} 20. Rh1 {[%emt 0:04:03]} Rxh1 {[%emt 0:03:20]} 21. Kxh1 {[%emt 0:00:25]} Qa6 {[%emt 0:00:27]} 22. Qxa6 {[%emt 0:01:45]} Rxa6 {[%emt 0:00:27]} 23. f4 {[%emt 0:01:05]} Na5 {[%emt 0:01:29]} 24. Nxa5 {[%emt 0:00:41]} Rxa5 {[%emt 0:00:01]} 25. Kg2 {[%emt 0:00:34]} b5 {[%emt 0:03:13]} 26. Kf3 {[%emt 0:08:09]} Ra8 {[%emt 0:00:08]} 27. b3 {[%emt 0:20:08]} g6 {[%emt 0:07:38]} 28. Bd2 {[%emt 0:11:56]} Rh8 {[%emt 0:06:08]} 29. Kg2 {[%emt 0:00:24]} Ra8 {[%emt 0:00:59]} 30. Kf3 {[%emt 0:00:09]} Rh8 {[%emt 0:00:48]} 31. Kg2 {[%emt 0:00:20]} Ra8 {[%emt 0:00:04]} 32. Kf3 {[%emt 0:00:05]} 1/2-1/2